Cogmind - Beta 13 @@@ ROGUE MODE // 2024.07.16 @ 21:00:57 Player: TryingToLearn Result: Self-destructed Performance ------------- Evolutions (2) 1000 Regions Visited (5) 1000 Robots Destroyed (44) 220 Value Destroyed (1042) 1042 Prototype IDs (2) 40 Alien Tech Used (0) 0 Bonus (37) 37 TOTAL SCORE: 3339 Bonus ------- Follower Combat Kills 58 Friendly Fire -21 Cogmind --------- Core Integrity 334/550 Matter 153/300 Energy 100/100 System Corruption 0% Temperature Cool (0) Movement Core (1350) Ox26 Location -8/Materials Parts ------- > --- POWER (1) -------- (None) > --- PROPULSION (4) --- (None) > --- UTILITY (4) ------ Huge Storage Unit Improved Signal Interpreter > --- WEAPON (2) ------- (None) > --- INVENTORY (25) --- Heavy Ion Engine Light Deuterium Engine Light Nuclear Core Light Nuclear Core Hybrid Deuterium Engine Light Angular Momentum Engine Carbon-fiber Leg Flexi-carbon Leg Wheel Wheel Wheel Compact Wheel Gravmag System Heat Sink Improved Heat Sink Advanced Weight Redist. System Advanced Weight Redist. System Core Analyzer Core Shielding Improved EM Shotgun Gauss Cannon Proton Missile Launcher Rocket Launcher Mini Grenade Launcher Peak State ------------ > --- POWER ------------ Deuterium Engine > --- PROPULSION ------- Carbon-fiber Leg Flexi-carbon Leg Compact Wheel Compact Wheel > --- UTILITY ---------- Huge Storage Unit Improved Signal Interpreter Seismic Detector Kinecellerator > --- WEAPON ----------- Flak Cannon Bore Cannon > --- INVENTORY -------- Heavy Ion Engine Light Deuterium Engine Light Nuclear Core Light Nuclear Core Hybrid Deuterium Engine Light Angular Momentum Engine Carbon-fiber Leg Flexi-carbon Leg Wheel Wheel Wheel Compact Wheel Gravmag System Heat Sink Improved Heat Sink Advanced Weight Redist. System Advanced Weight Redist. System Core Analyzer Core Shielding Improved EM Shotgun Gauss Cannon Proton Missile Launcher Rocket Launcher Mini Grenade Launcher [Rating: 36] Favorites ----------- Power Heavy Ion Engine Engine Heavy Ion Engine Propulsion Wheel Treads Light Treads Leg Flexi-carbon Leg Wheel Wheel Utility Huge Storage Unit Device Kinecellerator Storage Huge Storage Unit Processor Improved Signal Interpreter Protection Propulsion Shielding Weapon Flak Cannon Energy Gun Medium Laser Ballistic Cannon Flak Cannon Launcher Mini Grenade Launcher Build | -11 -10 -10 -9 -9 -8 ------- Run | Yrd Mat Min Mat Min Mat Slots Evolved 4 | . . . 2 . 2 Power . | . . . . . . Propulsion 2 | . . . 2 . . Utility 2 | . . . . . 2 Weapon . | . . . . . . Parts Attached 42 | 7 8 4 6 10 7 Power 4 | 1 1 . 1 . 1 Engine 4 | 1 1 . 1 . 1 Core . | . . . . . . Reactor . | . . . . . . Propulsion 17 | 3 5 3 2 3 1 Treads 3 | . 2 . 1 . . Leg 4 | 2 . . . 1 1 Wheel 10 | 1 3 3 1 2 . Hover . | . . . . . . Flight . | . . . . . . Utility 8 | 1 2 . 1 1 3 Device 2 | . . . . . 2 Storage 3 | 1 1 . . 1 . Processor 1 | . . . . . 1 Hackware . | . . . . . . Protection 2 | . 1 . 1 . . Artifact . | . . . . . . Weapon 13 | 2 . 1 2 6 2 Energy Gun 4 | 2 . . 1 1 . Energy Cannon . | . . . . . . Ballistic Gun . | . . . . . . Ballistic Cannon 5 | . . . 1 2 2 Launcher 4 | . . 1 . 3 . Special Weapon . | . . . . . . Impact Weapon . | . . . . . . Slashing Weapon . | . . . . . . Piercing Weapon . | . . . . . . Special Melee Weapon . | . . . . . . Unidentified Prototypes 2 | . . . 1 1 . Parts Lost 19 | . 4 . 1 3 11 Power 2 | . 1 . . . 1 Propulsion 9 | . 2 . . 2 5 Utility 4 | . . . 1 1 2 Weapon 4 | . 1 . . . 3 Highest Loss Streak 10 | . 4 . 1 3 10 To Critical Strikes . | . . . . . . Average Slot Usage (%) 97 | . 91 100 99 98 92 Engine 11 | . 12 14 11 11 8 Treads 6 | . 9 7 11 4 . Leg 4 | . 2 . . 5 13 Wheel 26 | . 16 20 33 32 18 Device 2 | . . . . . 15 Storage 15 | . 17 14 11 18 14 Protection 6 | . 9 14 10 2 . Energy Gun 7 | . 22 14 11 2 . Ballistic Cannon 7 | . . . 2 10 15 Launcher 7 | . . 14 8 7 . Naked Turns . | . . . . . . Heaviest Build 109 | 12 92 89 100 100 109 Greatest Support 42 | 20 40 40 30 42 42 Greatest Overweight (x) 31 | . 2 8 3 9 31 Average Overweight (x) 2 | . 1 4 2 2 2 Largest Inventory Capacity 25 | 8 25 25 25 25 25 Average Capacity 24 | 7 24 25 25 25 25 Most Carried 25 | 5 7 18 25 25 25 Average Carried 18 | 2 5 10 21 23 23 Final Capacity 25 | 8 25 25 25 25 25 Final Carried 25 | 5 4 18 25 23 24 Class Distribution -------------------- 53% | Mutant 46% | Scavenger-Mutant Dominant Class ---------------- Mutant | -10/Materials Mutant | -10/Mines Mutant | -9/Materials Scavenger-Mutant | -9/Mines Scavenger-Mutant | -8/Materials Resources | -11 -10 -10 -9 -9 -8 ----------- Run | Yrd Mat Min Mat Min Mat Matter Collected 1074 | 169 112 146 142 257 248 Remotely . | . . . . . . Salvage Created 848 | . 161 45 239 204 199 Parts 62 | . 12 2 15 27 6 Haulers Intercepted . | . . . . . . Recyclers Shooed . | . . . . . . Parts Field Recycled . | . . . . . . Retrieved Matter . | . . . . . . Parts Self-Destructed . | . . . . . . Prevented . | . . . . . . Kills | -11 -10 -10 -9 -9 -8 ------- Run | Yrd Mat Min Mat Min Mat Combat Hostiles Destroyed 38 | . 5 1 9 15 8 Guns 9 | . 5 1 . 3 . Cannons 22 | . . . 5 9 8 AOE 7 | . . . 4 3 . Classes Destroyed 9 | . 3 2 3 1 . Worker 3 | . . 1 . 2 . Tunneler 1 | . . . . 1 . Operator 1 | . 1 . . . . Watcher 2 | . . . 1 . 1 Swarmer 19 | . 3 . 4 12 . Grunt 12 | . 2 . 3 2 5 Duelist 3 | . . . 1 1 1 Sentry 3 | . . . 1 . 2 Assembled 1 | . . 1 . . . Best Kill Streak 6 | . 4 1 6 6 5 Combat Bots Only 6 | . 3 1 5 6 2 Max Kills in Single Turn 2 | . 1 1 2 2 1 Gunslinging . | . . . . . . Exploded 1 | . . . 1 1 . Melee . | . . . . . . Uniques/NPCs Destroyed . | . . . . . . Combat | -11 -10 -10 -9 -9 -8 -------- Run | Yrd Mat Min Mat Min Mat Hostile Shots Fired 208 | . 41 12 15 48 92 Missed 49 | . 9 3 2 13 22 Damage Taken 2122 | . 362 170 140 375 1075 Core 486 | . 105 81 14 70 216 Absorbed by Shields . | . . . . . . Redirected to Shielding 53 | . 29 12 12 . . Core Remaining (%) 68 | 100 . 25 . 79 . Volleys Fired 105 | . 20 9 17 22 37 Largest 2 | . 2 2 2 2 2 Hottest 101 | . 90 80 89 89 101 Shots Fired 176 | . 30 11 28 37 70 Gun 68 | . 30 9 17 12 . Cannon 97 | . . . 7 20 70 Launcher 11 | . . 2 4 5 . Special . | . . . . . . Kinetic 97 | . . . 7 20 70 Thermal 26 | . 17 9 . . . Explosive 11 | . . 2 4 5 . Electromagnetic 42 | . 13 . 17 12 . Robot Hit Streak 11 | . 4 3 5 4 11 Robot Miss Streak 10 | . 3 1 5 10 7 Penetration Max . | . . . . . . Secondary Targets . | . . . . . . Shots Hit Robots 113 | . 15 7 17 19 55 Core Hits 114 | . 9 5 21 34 45 Critical Kills . | . . . . . . Critical Parts Destroyed . | . . . . . . Critical Strikes 4 | . 2 1 . 1 . Burn 3 | . 2 1 . . . Corrupt 1 | . . . . 1 . Melee Attacks . | . . . . . . Impact . | . . . . . . Slashing . | . . . . . . Piercing . | . . . . . . Sneak Attacks . | . . . . . . Combat Hostiles . | . . . . . . Follow-up Attacks . | . . . . . . Damage Inflicted 2628 | . 225 226 491 595 1091 Guns 473 | . 225 62 134 52 . Cannons 1457 | . . . 132 234 1091 Explosions 698 | . . 164 225 309 . Melee . | . . . . . . Ramming . | . . . . . . Kinetic 1457 | . . . 132 234 1091 Thermal 235 | . 136 62 37 . . Explosive 661 | . . 164 188 309 . Electromagnetic 275 | . 89 . 134 52 . Impact . | . . . . . . Slashing . | . . . . . . Piercing . | . . . . . . Highest Corruption . | . . . . . . Average Corruption . | . . . . . . Corruption Purged . | . . . . . . Corruption Blocked . | . . . . . . Overload Shots . | . . . . . . Overflow Damage 2 | . . . . 2 . Projectiles 2 | . . . . 2 . Explosions . | . . . . . . Melee . | . . . . . . Knockbacks 62 | . . . 5 6 51 Impact . | . . . . . . Kinetic 58 | . . . 5 6 47 Secondary 4 | . . . . . 4 Self-Inflicted Damage 13 | . . . . 13 . Shots 1 | . . . . 1 . Rammed . | . . . . . . Targets Rammed . | . . . . . . Kicked . | . . . . . . Crushed . | . . . . . . Highest Temperature 333 | . 265 48 150 262 333 Average Temperature 97 | . 126 19 60 96 106 Received Heat Transfer 876 | . 135 45 51 6 639 Effects 3 | . 1 . . . 2 Energy Bleed 2 | . 1 . . . 1 Interference 1 | . . . . . 1 Siege Activations . | . . . . . . Robots Corrupted . | . . . . . . Combat Hostiles . | . . . . . . Parts Fried . | . . . . . . Impact Corruptions . | . . . . . . Robots Melted . | . . . . . . Combat Hostiles . | . . . . . . Parts Melted 1 | . 1 . . . . Heat Transferred 864 | . 555 259 50 . . Parts Sabotaged . | . . . . . . Parts Stolen . | . . . . . . Parts Stripped . | . . . . . . Power Chain Reactions 1 | . . . 1 . . Alert | -11 -10 -10 -9 -9 -8 ------- Run | Yrd Mat Min Mat Min Mat Peak Influence 390 | . 111 69 285 390 274 Initial 111 | . . 39 . 111 48 Average 153 | . 57 59 128 241 155 Maximum Alert Level 1 | . . . 1 1 1 Low Security (%) 72 | 100 100 100 85 51 57 Level 1 27 | . . . 14 48 42 Level 2 . | . . . . . . Level 3 . | . . . . . . Level 4 . | . . . . . . Level 5 . | . . . . . . High Security . | . . . . . . Max Security . | . . . . . . Squads Dispatched 4 | . 1 . . . 3 Investigation 1 | . . . . . 1 Extermination . | . . . . . . Reinforcement 3 | . 1 . . . 2 Assault . | . . . . . . Garrison . | . . . . . . Intercept . | . . . . . . Searches Triggered . | . . . . . . Construction Impeded . | . . . . . . Haulers Reinforced . | . . . . . . Active Scanning Responses . | . . . . . . Cargo Convoy Interrupts . | . . . . . . Stealth | -11 -10 -10 -9 -9 -8 --------- Run | Yrd Mat Min Mat Min Mat Distress Signals 4 | . . . 1 . 3 Communications Jammed . | . . . . . . Distress Signals . | . . . . . . Times Spotted 52 | . 6 3 13 14 16 Peak Tracking Total 5 | . 3 2 4 5 5 Tactical Retreats . | . . . . . . Traps | -11 -10 -10 -9 -9 -8 ------- Run | Yrd Mat Min Mat Min Mat Traps Triggered 2 | . . . . 2 . Indirectly . | . . . . . . Trap Hack Attempts . | . . . . . . Triggered . | . . . . . . Disarmed . | . . . . . . Reprogrammed . | . . . . . . Reused . | . . . . . . Traps Extracted . | . . . . . . Installed . | . . . . . . Triggered . | . . . . . . Machines | -11 -10 -10 -9 -9 -8 ---------- Run | Yrd Mat Min Mat Min Mat Machines Disabled 1 | . 1 . . . . Max in Single Turn 1 | . 1 . . . . Machines Repaired . | . . . . . . Machines Dismantled . | . . . . . . Machines Sabotaged . | . . . . . . Overloaded Fab Kills . | . . . . . . Hacking | -11 -10 -10 -9 -9 -8 --------- Run | Yrd Mat Min Mat Min Mat Machines Accessed 6 | . . 1 2 2 1 Terminals 5 | . . 1 2 1 1 Fabricators . | . . . . . . Repair Stations . | . . . . . . Recycling Units . | . . . . . . Scanalyzers . | . . . . . . Garrison Access . | . . . . . . Total Hacks 18 | . . 3 10 2 3 Successful 10 | . . 2 6 1 1 Failed 8 | . . 1 4 1 2 Catastrophic 2 | . . 1 . 1 . Database Lockouts . | . . . . . . Manual 12 | . . . 8 1 3 Terminals 17 | . . 3 10 1 3 Fabricators . | . . . . . . Repair Stations . | . . . . . . Recycling Units . | . . . . . . Scanalyzers . | . . . . . . Garrison Access . | . . . . . . Terminal Hacks 8 | . . 2 4 1 1 Open Door 1 | . . . . 1 . Level Access Points 2 | . . 1 . . 1 Locate Traps 1 | . . . 1 . . Transport Status 1 | . . . 1 . . Zone Layout 3 | . . 1 2 . . Fabricator Hacks . | . . . . . . Repair Station Hacks . | . . . . . . Recycling Unit Hacks . | . . . . . . Scanalyzer . | . . . . . . Garrison Access Hacks . | . . . . . . Unauthorized Hacks 2 | . . . 2 . . Terminals 2 | . . . 2 . . Botnet 2 | . . . 2 . . Fabricators . | . . . . . . Repair Stations . | . . . . . . Recycling Units . | . . . . . . Scanalyzers . | . . . . . . Garrison Access . | . . . . . . Data Cores Recovered 1 | . 1 . . . . Used . | . . . . . . Hacking Detections 5 | . . 1 2 1 1 Full Trace Events 1 | . . . . . 1 Feedback Events . | . . . . . . Feedback Blocked . | . . . . . . Robot Schematics Acquired . | . . . . . . Robots Built . | . . . . . . Authchips . | . . . . . . Time . | . . . . . . Total Robot Build Rating . | . . . . . . Part Schematics Acquired . | . . . . . . Parts Built . | . . . . . . Authchips . | . . . . . . Time . | . . . . . . Total Part Build Rating . | . . . . . . Parts Repaired . | . . . . . . Time . | . . . . . . Parts Recycled . | . . . . . . Recycled Matter . | . . . . . . Retrieved Matter . | . . . . . . Retrieved Components . | . . . . . . Parts Scanalyzed . | . . . . . . Part Schematics Acquired . | . . . . . . Parts Damaged . | . . . . . . Bothacking | -11 -10 -10 -9 -9 -8 ------------ Run | Yrd Mat Min Mat Min Mat Used RIF Installer . | . . . . . . Robots Hacked . | . . . . . . Non-combat . | . . . . . . Combat . | . . . . . . Robot Hacks Applied . | . . . . . . Relay Couplers Released . | . . . . . . Fabnet Peak Effective % . | . . . . . . Robots Rewired . | . . . . . . Allies Hacked . | . . . . . . Hacks Repelled . | . . . . . . Allies | -11 -10 -10 -9 -9 -8 -------- Run | Yrd Mat Min Mat Min Mat Total Allies 3 | . . 3 . . . Largest Group 3 | . . 3 3 . . Highest-Rated Group 40 | . . 40 40 . . Highest-Rated Ally 16 | . . 16 16 . . Total Orders . | . . . . . . Ally Attacks 24 | . . . 24 . . Total Damage 204 | . . . 204 . . Kills 2 | . . . 2 . . Allies Corrupted . | . . . . . . Allies Melted . | . . . . . . Intel | -11 -10 -10 -9 -9 -8 ------- Run | Yrd Mat Min Mat Min Mat Robot Analysis Total . | . . . . . . Derelict Logs Recovered 1 | . . . . 1 . Drone Launches . | . . . . . . Drone Recoveries . | . . . . . . Exploration | -11 -10 -10 -9 -9 -8 ------------- Run | Yrd Mat Min Mat Min Mat Turns Passed 2491 | 67 267 449 340 972 396 Spaces Moved 1497 | 47 117 240 215 700 178 Core 2 | 1 . . . . 1 Treads 43 | . 28 15 . . . Legs 34 | 24 10 . . . . Wheels 1418 | 22 79 225 215 700 177 Hover . | . . . . . . Flight . | . . . . . . Fastest Speed 50 | 50 120 140 110 123 123 Average Speed 136 | 109 174 166 119 123 146 Slowest Speed 1600 | 120 320 320 125 215 1600 Overloaded Moves . | . . . . . . Propulsion Burnouts . | . . . . . . Robots Hopped . | . . . . . . Cave-ins Triggered . | . . . . . . Exploration Rate (%) 35 | 3 34 50 22 88 18 Regions Visited 5 Branch Regions 2 Pre-discovered Areas . | . . . . . . Known Exits Taken 1 | . . 1 . . . Unknown Exits Taken 4 | 1 1 . 1 1 . Scrap Searched 2 | . . . . 2 . Spaces Dug . | . . . . . . Terrain Destroyed 93 | . . 18 23 43 9 Melee . | . . . . . . Projectile 9 | . . . . . 9 AOE 84 | . . 18 23 43 . Terrain Rammed . | . . . . . . Walls Destroyed . | . . . . . . Machines Disabled . | . . . . . . Actions | -11 -10 -10 -9 -9 -8 --------- Run | Yrd Mat Min Mat Min Mat Total 1774 | 59 150 279 273 772 241 Wait 62 | . 3 10 12 22 15 Move 1492 | 46 116 239 214 699 178 Hop . | . . . . . . Pick Up 48 | 6 1 13 15 10 3 Fast Attach 14 | 5 2 1 2 2 2 Attach 18 | 1 4 2 3 5 3 Detach 7 | . 2 2 2 1 . Swap 10 | 1 2 1 1 3 2 Drop 16 | . . . 7 8 1 Fire 105 | . 20 9 17 22 37 Melee . | . . . . . . Ram . | . . . . . . Kick . | . . . . . . Crush . | . . . . . . Escape Stasis . | . . . . . . Rewire 2 | . . 2 . . . Trap . | . . . . . . Miscellaneous . | . . . . . . Route ------- -11/Scrapyard -10/Materials -10/Mines (discovered 2 exits: *Mat x2) -9/Materials (discovered 2 exits: *Min x2) -9/Mines (discovered 3 exits: *Mat x2 / [*Zio]) -8/Materials (discovered 3 exits: Fac x3) History --------- Turn | Location | Event 19 | -11/Scrapyard | Discovered new exit (range 15) 68 | -11/Scrapyard | Entered Materials 274 | -10/Materials | Lost 4 parts (1p2n1w) 306 | -10/Materials | Build established: Mutant 306 | -10/Materials | Discovered new exit (range 10) 335 | -10/Materials | Entered Mines 336 | -10/Mines | Assembled infested the area 341 | -10/Mines | Assisted by a Guerilla fighting off Assembled 345 | -10/Mines | Core integrity fell below 50% 387 | -10/Mines | Identified exit to Materials 691 | -10/Mines | Assisted by bots powering up and referring to "LRC-V3" 784 | -10/Mines | Entered Materials 784 | -9/Materials | Accompanied by 3 allies 784 | -9/Materials | Evolved 2 slots: Propulsion x2 786 | -9/Materials | Discovered new exit (range 15) 965 | -9/Materials | Discovered new exit (range 15) 979 | -9/Materials | Lost 3 allies 1124 | -9/Materials | Entered Mines 1129 | -9/Mines | Met a Derelict bent on vengeance 1180 | -9/Mines | Found a hidden stash of uninstalled traps 1300 | -9/Mines | Received a Rocket Launcher from a helpful Derelict 1362 | -9/Mines | Build established: Scavenger-Mutant 1371 | -9/Mines | Discovered new exit (range 10) 1435 | -9/Mines | Lost 3 parts (2n1u) 1525 | -9/Mines | Discovered new exit (range 12) 1562 | -9/Mines | Learned Materials stockpile data 1566 | -9/Mines | Met a Derelict who couldn't figure out how to use a Trap Extractor 1880 | -9/Mines | A Derelict revealed a hidden shortcut to a safe place 2096 | -9/Mines | Entered Materials 2096 | -8/Materials | Evolved 2 slots: Utility x2 2382 | -8/Materials | Identified exit to Factory 2492 | -8/Materials | Self-destructed Last Messages --------------- 02443_ Critical hit (Burn: +37). 02448_ Y-45 Defender destroyed. 02448_ HV Slug penetrates Wall. 02450_ Com. Wheel destroyed. 02451_ G-47 Trooper knocked back. 02451_ HV Slug penetrates Wall. 02452_ Overheating: Energy bleed (-60). 02454_ HV Slug penetrates Wall. 02457_ Acquired 24 matter. 02460_ Flak Cannon destroyed. 02463_ Overheating: System interference. 02463_ Seismic Detector temporarily disabled. 02466_ HV Slug penetrates Wall. 02472_ Com. Wheel destroyed. 02474_ G-47 Trooper knocked back. 02475_ Bore Cannon destroyed. 02476_ Flexi-carbon Leg destroyed. 02483_ Deuterium Engine destroyed. 02487_ Seismic Detector destroyed. 02490_ Kinecellerator destroyed. Map ----- +----------------------------------------------------+ | ??????????????????????# """ # #??# #??? | | ??????????????????????# """ # #??# #??? | | ??????????????????????# # #??# #??? | | ??????????????????????####+################ #??? | | ????????????????????????# # ] # #### | | !???????????????????????# + #! | | ????????????????????????# # "" """ """ + | | ????????????????????????# # "T """ """ #[ | | ????????????????????????# # "" """ "" # ###+ | | ????????????????????????# # # # | | ????????????????????????# ############### # | | ????????????????######### #??##?????????# #[ | | ????????????????# + #?? ?????????# # | | ????????????????# T # #? """????????# #!! | | ????????????????#[ + #? ""?????????# ###+ | | ????????????????# # #? ""?????????# # | | ????????????????# # ## ??? #?????# # T | | ????????????????#######"# #; ?? ?##????# # | | ???????????????????????# ###+##""###### %+ | | ???????????????????????# T u ^ # % | | ???????????????????????# "" # | | ???????????????????????# % #= | | ???????????????????????#[ ############## # | | ?????????????????????#####g#;###????!?????# #### | | ?????????????????????#//!g #??????????# ??? | | ?????????????????????#/]!@ #??????????+ ??? | | ?????????????????????#/! % #??????????# ??? | | ?????????????????????# #??????????### #??? | | ?????????????????????#= #????????????? #??? | | ?????????????????????# """ #????????????? ???? | | ?????????????????????# """ #?????????????/???? | | ?????????????????????# """ #???????????? ???? | | ?????????????????????############????????????"???? | | ?????????????????????????????????????????????????? | | ?????????????????????????????????????????????????? | | ?????????????????????????????????????????????????? | | ?????????????????????????????????????????????????? | | ?????????????????????????????????????????????????? | | ?????????????????????????????????????????????????? | | ?????????????????????????????????????????????????? | | ?????????????????????????????????????????????????? | | ?????????????????????????????????????????????????? | | ??????????????????????????????!??????????????????? | | ?????????????????????????????????????????????????? | | ?????????????????????????????????????????????????? | | ?????????????????????????????????????????????????? | | ?????????????????????????????????????????????????? | | ?????????????????????????????????????????????????? | | ?????????????????????????????????????????????????? | | ?????????????????????????????????????????????????? | +----------------------------------------------------+ Best States ------------- Heat Dissipation 31 Energy Generation 14 Energy Capacity 280 Matter Stores 350 Matter Capacity 350 Sight Range 16 Terrain Scan Density 10 Armor Coverage 150 Propulsion Shielding 33 Evasion (%) 55 Recoil Reduction 2 Kinecelleration 30 Item Schematics ----------------- None Robot Schematics ------------------ None Fabricated ------------ Nothing Alien Tech Used ----------------- None Achievements -------------- None Challenges ------------ None Game ------ Seed AlloyVariableComputer Manual? 0 Play Time 00:25:22 Cumulative 28.3 hours Start 2024.07.16 @ 20:35:56 End 2024.07.16 @ 21:00:57 Sessions 1 Manual Loads 0 Difficulty Rogue Special Mode None Game No. 23 Rogue 23 Adventurer 0 Explorer 0 Win Type - Total 0 Types 0/0/0/0/0/0/0/0/0 Lore% 18 Gallery% 34 Achievement% 25 Wizard Run 0 Options --------- Layout 0 ASCII 0 Keyboard 1 Movement Numpad Keybinds 0 Fullscreen 0 Font 16/SmallcapsGlow Map View 88x55 Zoom Use 0% Tactical HUD 1 Map Filters NONE Filters NONE Steam 1 RUN: fb016c45-07c9-4ab0-a835-d85d91a1cfe9